bitfinex-derivatives/quotes_BTCF0:USTF0_20250207
["timestamp","ask_amount","ask_price","bid_price","bid_amount"]
[1738956773387,0.005,97559.0,97558.0,0.58333885]
[1738956774191,0.2099529,97559.0,97558.0,0.37838385]
[1738956775589,0.005,97559.0,97558.0,0.37838385]
[1738956775788,0.005,97559.0,97558.0,0.58333885]
[1738956776292,0.005,97559.0,97558.0,0.37838385]
[1738956776603,0.2099529,97559.0,97558.0,0.37838385]
[1738956780298,0.2099529,97559.0,97558.0,0.3678]
[1738956780599,0.2099529,97559.0,97558.0,0.007]
[1738956781195,0.2049718,97550.0,97549.0,0.00015375]
[1738956782794,0.2059718,97550.0,97549.0,0.00115375]
[1738956783197,0.2089718,97550.0,97549.0,0.00215375]
[1738956784495,0.2089718,97550.0,97549.0,0.00715375]
[1738956784695,0.2089718,97550.0,97549.0,0.21212765]
[1738956785296,0.2089718,97550.0,97549.0,0.00715375]
[1738956788099,0.2089718,97550.0,97549.0,5e-08]
[1738956788300,0.8697718,97550.0,97549.0,5e-08]
[1738956790307,0.2089718,97550.0,97549.0,5e-08]
[1738956791003,0.5697718,97550.0,97549.0,5e-08]
[1738956791606,0.2089718,97550.0,97549.0,5e-08]
[1738956792007,0.5697718,97550.0,97549.0,5e-08]
[1738956792606,0.2089718,97550.0,97549.0,5e-08]
[1738956793310,0.4290718,97550.0,97549.0,5e-08]
[1738956793810,0.7898718,97550.0,97549.0,5e-08]
[1738956794006,0.4290718,97550.0,97549.0,5e-08]
[1738956794201,0.7898718,97550.0,97549.0,5e-08]
[1738956798414,0.4290718,97550.0,97549.0,5e-08]
[1738956799420,0.2089718,97550.0,97549.0,5e-08]
[1738956806510,0.5697718,97550.0,97549.0,5e-08]
[1738956807509,0.2089718,97550.0,97549.0,5e-08]
[1738956807707,0.2049907,97541.0,97540.0,1e-07]
[1738956808015,0.2049907,97541.0,97514.0,0.05302771]
[1738956808016,0.2050454,97515.0,97514.0,0.05302771]
[1738956808211,0.2778054,97515.0,97514.0,0.05302771]
[1738956809210,0.6386054,97515.0,97514.0,0.05302771]
[1738956809412,0.5658454,97515.0,97514.0,0.05302771]
[1738956809617,0.2050454,97515.0,97514.0,0.05302771]
[1738956810013,0.2060454,97515.0,97514.0,0.05302771]
[1738956810418,0.2070454,97515.0,97514.0,0.05302771]
[1738956811319,0.2070454,97515.0,97508.0,0.3608]
[1738956811320,0.2050559,97510.0,97508.0,0.3608]
[1738956811919,0.2050622,97507.0,97506.0,0.1197]
[1738956812116,0.2050959,97491.0,97490.0,0.1235]
[1738956812917,0.5658959,97491.0,97490.0,0.1235]
[1738956813119,0.3608,97491.0,97486.0,0.00153862]
[1738956813320,0.2051043,97487.0,97486.0,0.00153862]
[1738956813914,0.3608,97491.0,97481.0,0.00015383]
[1738956813915,0.2051148,97482.0,97481.0,0.00015383]
[1738956814117,0.5659148,97482.0,97481.0,0.00015383]
[1738956815214,0.6386748,97482.0,97481.0,0.00015383]
[1738956815915,0.6386748,97482.0,97481.0,3e-08]
[1738956816324,0.2051611,97460.0,97459.0,0.1244]
[1738956816826,0.2051611,97460.0,97455.0,0.2425]
[1738956816827,0.3608,97469.0,97455.0,0.2425]
[1738956817120,0.2051695,97456.0,97455.0,0.2425]
[1738956817815,0.001,97460.0,97459.0,0.009]
[1738956818826,0.002,97460.0,97459.0,0.018]
[1738956819328,0.001,97460.0,97459.0,0.009]
[1738956820321,0.002,97460.0,97459.0,0.018]
[1738956820623,0.3628,97460.0,97459.0,0.018]
[1738956820930,0.002,97460.0,97459.0,0.018]
[1738956822327,0.005,97460.0,97459.0,0.009]
[1738956822525,0.005,97460.0,97452.0,0.00015391]
[1738956822729,0.2051758,97453.0,97452.0,0.00015391]
[1738956823123,0.2051729,97457.0,97456.0,0.2051655]
[1738956824432,0.2051716,97455.0,97454.0,0.3608]
[1738956825124,0.2051758,97453.0,97452.0,0.00015391]
[1738956825726,0.5659758,97453.0,97452.0,0.00015391]
[1738956825931,0.5659758,97453.0,97452.0,1e-08]
[1738956826236,0.3608,97453.0,97444.0,0.00153914]
[1738956826427,0.2051927,97445.0,97444.0,0.00153914]
[1738956826623,0.2779927,97445.0,97444.0,0.00153914]
[1738956828324,0.6387927,97445.0,97444.0,0.00153914]
[1738956828536,0.6387927,97445.0,97444.0,0.00353914]
[1738956828734,0.2052116,97436.0,97435.0,0.00010299]
[1738956828926,0.5660116,97436.0,97435.0,0.00010299]
[1738956829326,0.5660116,97436.0,97435.0,9e-08]
[1738956830028,0.5670116,97436.0,97435.0,0.01100009]
[1738956830541,0.5670116,97436.0,97435.0,9e-08]
[1738956831629,0.205258,97414.0,97413.0,0.0976]
[1738956832323,0.2052727,97407.0,97406.0,0.0943]
[1738956833634,0.2062727,97407.0,97406.0,0.0993]
[1738956834029,0.2072727,97407.0,97406.0,0.1063]
[1738956835133,0.2072727,97407.0,97406.0,0.1064]
[1738956836641,0.2072727,97407.0,97406.0,0.3116748]
[1738956838429,0.002,97407.0,97406.0,0.6724748]
[1738956838634,0.205243,97422.0,97421.0,0.2052411]
[1738956838838,0.205243,97422.0,97421.0,0.5660411]
[1738956839048,0.00015391,97423.0,97422.0,0.2052411]
[1738956840430,0.1511715,97443.0,97435.0,0.2052137]
[1738956840739,0.2052174,97434.0,97422.0,0.3608]
[1738956840943,0.2052174,97434.0,97433.0,0.3608]
[1738956841136,0.2052037,97440.0,97437.0,0.2052083]
[1738956841334,0.1511715,97443.0,97437.0,0.2052083]
[1738956841538,0.2052137,97435.0,97434.0,0.3976149]
[1738956843137,0.0015401,97439.0,97437.0,0.2052092]
[1738956843333,0.00015399,97448.0,97445.0,0.2051927]
[1738956843533,0.00015399,97448.0,97447.0,0.3608]
[1738956845460,0.00215399,97448.0,97447.0,0.3608]
[1738956845850,0.00015399,97448.0,97447.0,0.3608]
[1738956847353,0.00015399,97448.0,97435.0,0.3608]
[1738956847354,0.2564863,97447.0,97435.0,0.3608]
[1738956847557,0.2052116,97436.0,97435.0,0.3608]
[1738956848657,0.2052116,97436.0,97435.0,0.3618]
[1738956849265,0.2052116,97436.0,97435.0,0.3658]
[1738956849455,0.2062116,97436.0,97435.0,0.3718]
[1738956850855,0.2072116,97436.0,97435.0,0.006]
[1738956851259,0.2062116,97436.0,97434.0,0.0001]
[1738956851558,0.2082116,97436.0,97434.0,0.0001]
[1738956852153,0.006,97436.0,97435.0,0.2062137]
[1738956852464,0.007,97436.0,97435.0,0.2062137]
[1738956852854,0.005,97436.0,97435.0,0.2062137]
[1738956853058,0.009,97436.0,97435.0,0.2052137]
[1738956853567,0.007,97436.0,97435.0,0.2052137]
[1738956854249,0.2112116,97436.0,97434.0,0.0011]
[1738956854456,0.001,97436.0,97435.0,0.001]
[1738956854661,0.2062116,97436.0,97435.0,0.001]
[1738956855262,0.2052137,97435.0,97434.0,0.0001]
[1738956855455,0.2895137,97435.0,97434.0,0.0001]
[1738956857463,0.2925137,97435.0,97434.0,0.0001]
[1738956857658,0.2935137,97435.0,97434.0,0.0001]
[1738956858562,0.2975137,97435.0,97434.0,0.0001]
[1738956859355,0.2945137,97435.0,97434.0,0.0001]
[1738956859557,0.2975137,97435.0,97434.0,0.0001]
[1738956859761,0.2925137,97435.0,97434.0,0.0001]
[1738956859960,0.2935137,97435.0,97434.0,0.0001]
[1738956861564,0.0923,97435.0,97423.0,0.00153961]
[1738956861760,0.2052264,97429.0,97423.0,0.00153961]
[1738956863057,0.2062264,97429.0,97423.0,0.00153961]
[1738956864560,0.2082264,97429.0,97423.0,0.00153961]
[1738956865161,0.2082264,97429.0,97428.0,3.443e-05]
[1738956865563,0.2809864,97429.0,97428.0,3.443e-05]
[1738956866768,0.29165231,97429.0,97428.0,3.443e-05]
[1738956870770,0.51175231,97429.0,97428.0,3.443e-05]
[1738956874970,0.43899231,97429.0,97428.0,3.443e-05]
[1738956875159,0.51175231,97429.0,97428.0,3.443e-05]
[1738956875575,0.56166644,97429.0,97428.0,3.443e-05]
[1738956878675,0.51175231,97429.0,97428.0,3.443e-05]
[1738956879570,0.43899231,97429.0,97428.0,3.443e-05]
[1738956879777,0.4283264,97429.0,97428.0,3.443e-05]
[1738956879978,0.2082264,97429.0,97428.0,3.443e-05]
[1738956883877,0.003,97429.0,97428.0,0.20526293]
[1738956886377,0.18048693,97458.0,97447.0,0.2051885]
[1738956886572,0.18048693,97458.0,97457.0,0.2051674]
[1738956886779,0.2051521,97465.0,97457.0,0.3608]
[1738956886978,0.2051542,97464.0,97459.0,0.2051616]
[1738956887168,0.18048693,97466.0,97448.0,0.0947]
[1738956887369,0.2051686,97457.0,97448.0,0.0947]
[1738956887673,0.2051555,97463.0,97456.0,0.5659695]
[1738956887873,0.2051598,97461.0,97458.0,0.2051652]
[1738956888180,0.2051619,97460.0,97459.0,0.001]
[1738956888568,0.2051619,97460.0,97458.0,0.2051652]
[1738956888974,0.006,97463.0,97456.0,0.3618]
[1738956889181,0.2051663,97458.0,97456.0,0.3618]
[1738956889375,0.2051663,97458.0,97456.0,0.001]
[1738956889581,0.0939,97457.0,97456.0,0.001]
[1738956890276,0.2051843,97449.0,97448.0,0.001]
[1738956890483,0.2051843,97449.0,97447.0,0.00015391]
[1738956891578,0.2061843,97449.0,97447.0,0.00015391]
[1738956891977,0.2051843,97449.0,97447.0,0.00015391]
[1738956892177,0.2061843,97449.0,97447.0,0.00015391]
[1738956893688,0.2071843,97449.0,97447.0,0.00015391]
[1738956898690,0.2051864,97448.0,97447.0,0.00015391]
[1738956900189,0.2061864,97448.0,97447.0,0.00015391]
[1738956900491,0.7870864,97448.0,97447.0,0.00015391]
[1738956900684,0.17242804,97440.0,97422.0,0.18]
[1738956900885,0.205239,97423.0,97422.0,0.18]
[1738956901201,0.2052432,97421.0,97420.0,0.00153961]
[1738956902997,0.2052432,97421.0,97420.0,0.20678491]
[1738956903390,0.2052432,97421.0,97420.0,0.00153961]
[1738956903894,0.2052432,97421.0,97420.0,0.00353961]
[1738956905000,0.2052432,97421.0,97420.0,0.00553961]
[1738956906903,0.2052432,97421.0,97420.0,1e-07]
[1738956908397,0.4253432,97421.0,97420.0,1e-07]
[1738956909699,0.4253432,97421.0,97410.0,0.3608]
[1738956909899,0.4343432,97421.0,97420.0,0.001]
[1738956910093,0.4433432,97421.0,97420.0,0.002]
[1738956910402,0.4393432,97421.0,97420.0,0.002]
[1738956911099,0.2052643,97411.0,97410.0,0.3720499]
[1738956911400,0.2052643,97411.0,97410.0,0.001]
[1738956912395,0.2052643,97411.0,97409.0,0.2052671]
[1738956912592,0.48192724,97420.0,97402.0,0.3608]
[1738956912795,0.2052727,97407.0,97402.0,0.3608]
[1738956914102,0.2072727,97407.0,97402.0,0.3608]
[1738956914495,0.2092727,97407.0,97402.0,0.3608]
[1738956914702,0.2092727,97407.0,97400.0,0.1]
[1738956915302,0.2052854,97401.0,97400.0,0.1]
[1738956916597,0.2052854,97401.0,97400.0,0.102]
[1738956917410,0.2072854,97401.0,97400.0,0.101]
[1738956921913,0.2072854,97401.0,97400.0,0.3062875]
[1738956921914,0.002,97401.0,97400.0,0.3062875]
[1738956922316,0.002,97401.0,97400.0,0.101]
[1738956922512,0.2072854,97401.0,97400.0,0.101]
[1738956923625,0.2072854,97401.0,97400.0,0.3062875]
[1738956924220,0.2072854,97401.0,97400.0,0.101]
[1738956925014,0.4273854,97401.0,97400.0,0.0961]
[1738956926018,0.43805045,97401.0,97400.0,0.0961]
[1738956927030,0.51073045,97401.0,97400.0,0.0961]
[1738956927327,0.30544505,97401.0,97392.0,0.3608]
[1738956927626,0.2053022,97393.0,97392.0,0.3608]
[1738956929229,0.2053022,97393.0,97392.0,0.3638]
[1738956929823,0.2053022,97393.0,97392.0,0.3658]
[1738956930224,0.5661022,97393.0,97392.0,0.005]
[1738956931630,0.2053022,97393.0,97392.0,0.005]
[1738956934126,0.4254022,97393.0,97392.0,0.005]
[1738956934331,0.2201,97393.0,97382.0,0.00154006]
[1738956934538,0.205355,97368.0,97362.0,0.24539918]
[1738956935934,0.205355,97368.0,97361.0,0.24539918]
[1738956936140,0.205355,97368.0,97366.0,0.205359]
[1738956937123,0.206355,97368.0,97367.0,0.18817935]
[1738956937328,0.207355,97368.0,97367.0,0.19217935]
[1738956938836,0.207355,97368.0,97367.0,0.19227935]
[1738956940027,0.207355,97368.0,97367.0,0.0081]
[1738956948740,0.207355,97368.0,97367.0,1e-07]
[1738956950244,0.206355,97368.0,97367.0,1e-07]
[1738956950438,0.215355,97368.0,97367.0,1e-07]
[1738956950945,0.295035,97368.0,97367.0,1e-07]
[1738956955745,0.515135,97368.0,97367.0,1e-07]
[1738956959246,0.56508141,97368.0,97367.0,1e-07]
[1738956963752,0.49240141,97368.0,97367.0,1e-07]
[1738956964058,0.56508141,97368.0,97367.0,1e-07]
[1738956964359,0.06694641,97368.0,97367.0,1e-07]
[1738956964561,0.06694641,97368.0,97367.0,0.2053571]
[1738956965362,0.27230131,97368.0,97367.0,0.2053571]
[1738956965549,0.27230131,97368.0,97367.0,1e-07]
[1738956966854,0.06694641,97368.0,97367.0,0.2053571]
[1738956967059,0.06694641,97368.0,97367.0,0.5053571]
[1738956967260,0.00015399,97377.0,97367.0,0.3000001]
[1738956967450,0.00015399,97377.0,97376.0,0.5661381]
[1738956968564,0.00915399,97377.0,97376.0,0.5661381]
[1738956970169,0.01815399,97377.0,97376.0,0.5671381]
[1738956970359,0.01815399,97377.0,97376.0,0.5681381]
[1738956970955,0.00915399,97377.0,97376.0,0.5671381]
[1738956971158,0.21448989,97377.0,97376.0,0.5671381]
[1738956971467,0.21448989,97377.0,97376.0,0.001]
[1738956971663,0.00015399,97377.0,97367.0,1e-07]
[1738956971861,0.2053549,97368.0,97367.0,1e-07]
[1738956972463,0.5661549,97368.0,97367.0,1e-07]
[1738956972670,0.6388349,97368.0,97367.0,1e-07]
[1738956973070,0.64917782,97368.0,97367.0,1e-07]
[1738956973879,0.2053802,97356.0,97355.0,0.18417935]
[1738956974079,0.5661802,97356.0,97355.0,0.18417935]
[1738956975180,0.5691802,97356.0,97355.0,0.18417935]
[1738956976077,0.5721802,97356.0,97355.0,0.18417935]
[1738956977183,0.2054013,97346.0,97345.0,0.3608]
[1738956977883,0.205414,97340.0,97339.0,0.1569]
[1738956978081,0.4121518,97344.0,97325.0,0.01049141]
[1738956978281,0.3608,97334.0,97323.0,0.2337]
[1738956978483,0.2054375,97329.0,97323.0,0.2337]
[1738956978684,0.3608,97334.0,97323.0,0.2337]
[1738956978886,0.2054446,97326.0,97323.0,0.2337]
[1738956979278,0.2054462,97325.0,97323.0,0.2337]
[1738956979890,0.2054462,97325.0,97323.0,0.24410248]
[1738956980189,0.2054462,97325.0,97323.0,0.25110248]
[1738956980779,0.2064462,97325.0,97323.0,0.25810248]
[1738956981490,0.2064462,97325.0,97323.0,0.25110248]
[1738956981690,0.2074462,97325.0,97323.0,0.26010248]
[1738956983686,0.2074462,97325.0,97323.0,0.1717]
[1738956983687,0.5682462,97325.0,97323.0,0.1717]
[1738956984588,0.5682462,97325.0,97323.0,0.016]
[1738956984796,0.0773,97324.0,97323.0,0.016]
[1738956985090,0.0773,97324.0,97323.0,0.009]
[1738956985684,0.0773,97324.0,97323.0,0.004]
[1738956986493,0.0773,97324.0,97323.0,0.003]
[1738956986693,0.0773,97324.0,97308.0,0.1557]
[1738956986992,0.2054794,97309.0,97308.0,0.1557]
[1738956987593,0.43412,97314.0,97303.0,0.18417935]
[1738956987594,0.20549,97304.0,97303.0,0.18417935]
[1738956989398,0.20649,97304.0,97303.0,0.18817935]
[1738956989879,0.20749,97304.0,97303.0,0.19317935]
[1738956991081,0.56829,97304.0,97303.0,0.19317935]
[1738956991393,0.56829,97304.0,97303.0,0.009]
[1738956991786,0.20749,97304.0,97303.0,0.009]
[1738956995195,0.28469,97304.0,97303.0,0.009]
[1738956995596,0.64549,97304.0,97303.0,0.009]
[1738956996289,0.64449,97304.0,97303.0,0.005]
[1738956996487,0.439,97304.0,97303.0,0.004]
[1738956996685,0.2055428,97279.0,97278.0,0.2806445]
[1738956997396,0.2055428,97279.0,97278.0,0.29114174]
[1738956997998,0.00015416,97288.0,97278.0,0.29114174]
[1738956997999,0.2055314,97285.0,97284.0,0.2055259]
[1738956998298,0.2055314,97285.0,97284.0,0.5663259]
[1738956999900,0.2065314,97285.0,97284.0,0.2065259]
[1738957000294,0.2075314,97285.0,97284.0,0.001]
[1738957007600,0.2075314,97285.0,97284.0,0.2065322]
[1738957007801,0.2075314,97285.0,97284.0,0.3618]
[1738957008498,0.2075314,97285.0,97284.0,0.001]
[1738957014104,0.2075314,97285.0,97284.0,0.2065322]
[1738957014699,0.002,97285.0,97284.0,0.5673322]
[1738957015809,0.002,97285.0,97284.0,0.57784841]
[1738957019798,0.002,97285.0,97284.0,0.57794841]
[1738957024004,0.2075301,97285.0,97284.0,0.57794841]
[1738957024206,0.2075301,97285.0,97284.0,0.3619]
[1738957024404,0.2075301,97285.0,97284.0,0.0011]
[1738957026401,0.21812924,97285.0,97284.0,0.0011]
[1738957028612,0.2075301,97285.0,97284.0,0.0011]
[1738957028921,0.002,97285.0,97284.0,0.5674322]
[1738957029409,0.002,97285.0,97284.0,0.3619]
[1738957034421,0.0804,97285.0,97284.0,0.3619]
[1738957034621,0.2859301,97285.0,97284.0,0.3619]
[1738957039422,0.2859301,97285.0,97284.0,0.0011]
[1738957043426,0.2849301,97285.0,97284.0,0.0001]
[1738957043731,0.3585701,97285.0,97284.0,0.0011]
[1738957046430,0.2055513,97275.0,97274.0,0.18473925]
[1738957046932,0.3608,97280.0,97268.0,0.18473925]
[1738957047122,0.2055639,97269.0,97268.0,0.18473925]
[1738957048126,0.2055639,97269.0,97268.0,0.05630601]
[1738957048728,0.2065639,97269.0,97268.0,0.05630601]
[1738957049719,0.2075639,97269.0,97268.0,0.05630601]
[1738957050528,0.2075639,97269.0,97268.0,0.26187201]
[1738957051728,0.2075639,97269.0,97268.0,0.05630601]
[1738957052642,0.2075639,97269.0,97268.0,0.26187201]
[1738957053324,0.002,97269.0,97268.0,0.26187201]
[1738957053530,0.20567856,97288.0,97284.0,0.2055322]
[1738957053722,0.20567856,97288.0,97287.0,0.2055259]
[1738957053933,0.00015416,97288.0,97284.0,0.3608]
[1738957054129,0.2055301,97285.0,97284.0,0.3608]
[1738957054829,0.2055534,97274.0,97273.0,0.073]
[1738957056129,0.2065534,97274.0,97273.0,0.001]
[1738957056936,0.2065534,97274.0,97273.0,0.2065555]
[1738957057440,0.2075534,97274.0,97273.0,0.2065555]
[1738957059331,0.2075534,97274.0,97273.0,0.001]
[1738957060439,0.2055808,97261.0,97260.0,0.3608]
[1738957061638,0.2065808,97261.0,97260.0,0.3608]
[1738957061840,0.2075808,97261.0,97260.0,0.3618]
[1738957062229,0.2065808,97261.0,97260.0,0.3618]
[1738957062427,0.2075808,97261.0,97260.0,0.3618]
[1738957062733,0.2075808,97261.0,97260.0,0.001]
[1738957063131,0.2055893,97257.0,97250.0,0.3608]
[1738957063332,0.2782293,97257.0,97256.0,0.24439918]
[1738957064430,0.2792293,97257.0,97256.0,0.24439918]
[1738957064746,0.2056295,97238.0,97237.0,0.01051901]
[1738957065053,0.2056337,97236.0,97235.0,0.2056357]
[1738957066135,0.001,97238.0,97237.0,0.2056316]
[1738957066435,0.2066295,97238.0,97237.0,0.2056316]
[1738957066644,0.2056295,97238.0,97237.0,0.2056316]
[1738957068045,0.2066295,97238.0,97237.0,0.2056316]
[1738957068245,0.2076295,97238.0,97237.0,0.2056316]
[1738957068947,0.002,97238.0,97237.0,0.2056316]
[1738957069142,0.00015424,97245.0,97244.0,0.2056168]
[1738957069336,0.20576884,97245.0,97244.0,0.5564168]
[1738957069847,0.00015424,97245.0,97244.0,0.5564168]
[1738957070947,0.00015424,97245.0,97244.0,0.56655057]
[1738957071340,0.00115424,97245.0,97244.0,0.56655057]
[1738957071942,0.20776894,97245.0,97244.0,0.56655057]
[1738957074042,0.20776894,97245.0,97244.0,0.37093377]
[1738957074241,0.20776894,97245.0,97244.0,0.3608]
[1738957078843,0.00215424,97245.0,97244.0,0.5664168]
[1738957079049,0.00215424,97245.0,97244.0,0.3608]
[1738957082254,0.00215424,97245.0,97244.0,0.4344]
[1738957083355,0.2056006,97252.0,97248.0,0.2056076]
[1738957083549,0.2056006,97252.0,97249.0,0.3577055]
[1738957083747,0.0756,97259.0,97249.0,0.1521]
[1738957083946,0.2055881,97258.0,97257.0,0.2055888]
[1738957084951,0.00015424,97267.0,97255.0,0.3608]
[1738957085150,0.00015424,97267.0,97266.0,0.3608]
[1738957086052,0.00115424,97267.0,97266.0,0.3608]
[1738957086553,0.00015424,97267.0,97266.0,0.3608]
[1738957086757,0.00115424,97267.0,97266.0,0.3608]
[1738957087059,0.20672244,97267.0,97266.0,0.3608]
[1738957090655,0.2055914,97256.0,97255.0,0.3608]
[1738957091856,0.2055914,97256.0,97255.0,0.3618]
[1738957092557,0.2065914,97256.0,97255.0,0.3618]
[1738957094555,0.21699818,97256.0,97255.0,0.3618]
[1738957097563,0.21699818,97256.0,97255.0,0.3619]
[1738957100369,0.21699818,97256.0,97255.0,0.5674935]
[1738957100664,0.2065914,97256.0,97255.0,0.5674935]
[1738957100867,0.001,97256.0,97255.0,0.5674935]
[1738957101872,0.2055712,97266.0,97265.0,0.2055724]
[1738957102569,0.00015424,97267.0,97266.0,0.2055703]
[1738957105564,0.00015424,97267.0,97257.0,0.3608]
[1738957105565,0.2055872,97258.0,97257.0,0.3608]
[1738957106972,0.2055872,97258.0,97257.0,0.3618]
[1738957107769,0.2055872,97258.0,97257.0,0.5673893]
[1738957107964,0.2055872,97258.0,97257.0,0.3618]
[1738957108659,0.2065872,97258.0,97257.0,0.3618]
[1738957108865,0.2065872,97258.0,97257.0,0.5673893]
[1738957109867,0.2065872,97258.0,97257.0,0.3618]
[1738957110469,0.2065872,97258.0,97257.0,0.5673893]
[1738957110667,0.001,97258.0,97257.0,0.5673893]
[1738957110874,0.2055704,97266.0,97265.0,0.2055724]
[1738957111169,0.2055704,97266.0,97265.0,0.5663724]
[1738957111971,0.2055704,97266.0,97265.0,0.3608]
[1738957112169,0.2065704,97266.0,97265.0,0.3608]
[1738957112369,0.2850704,97266.0,97265.0,0.3608]
[1738957112772,0.2850704,97266.0,97265.0,0.5663724]
[1738957113072,0.4403,97266.0,97257.0,0.01045744]
[1738957113265,0.4403,97266.0,97256.0,0.0794]
[1738957113574,0.4403,97266.0,97255.0,0.0001]
[1738957113575,0.2055914,97256.0,97255.0,0.0001]
[1738957115175,0.2055914,97256.0,97255.0,0.0011]
[1738957115570,0.2065914,97256.0,97255.0,0.0021]
[1738957116969,0.2065914,97256.0,97255.0,0.2076935]
[1738957117768,0.2065914,97256.0,97255.0,0.0021]
[1738957119374,0.001,97256.0,97255.0,0.5684935]
[1738957124180,0.2065914,97256.0,97255.0,0.5684935]
[1738957125277,0.2065914,97256.0,97255.0,0.3629]
[1738957127474,0.2065914,97256.0,97255.0,0.0021]
[1738957128574,0.2065914,97256.0,97255.0,0.2076935]
[1738957128770,0.2065914,97256.0,97255.0,0.5684935]
[1738957131279,0.20572394,97267.0,97255.0,0.3629]
[1738957131478,0.00015424,97267.0,97264.0,0.3608]
[1738957131778,0.00015424,97267.0,97266.0,0.2055703]
[1738957132787,0.2055556,97273.0,97272.0,0.2055541]
[1738957132977,0.2055556,97273.0,97272.0,0.5663541]
[1738957133983,0.0762,97278.0,97272.0,0.3608]
[1738957134186,0.2075555,97273.0,97272.0,0.5663555]
[1738957134883,0.2065555,97273.0,97272.0,0.5663555]
[1738957135083,0.2065555,97273.0,97272.0,0.3608]
[1738957135677,0.2075555,97273.0,97272.0,0.3608]
[1738957136073,0.2075555,97273.0,97267.0,0.0763]
[1738957136074,0.205566,97268.0,97267.0,0.0763]
[1738957137077,0.205566,97268.0,97267.0,0.2818682]
[1738957137278,0.205566,97268.0,97267.0,0.2828682]
[1738957137479,0.205566,97268.0,97267.0,0.0773]
[1738957137882,0.205566,97268.0,97267.0,0.0783]
[1738957138587,0.206566,97268.0,97267.0,0.0773]
[1738957138979,0.206566,97268.0,97267.0,0.0763]
[1738957139890,0.205566,97268.0,97267.0,0.0763]
[1738957140088,0.206566,97268.0,97267.0,0.0763]
[1738957140383,0.2055703,97266.0,97265.0,0.36132]
[1738957140583,0.2055703,97266.0,97265.0,0.3608]
[1738957141580,0.2065703,97266.0,97265.0,0.3618]
[1738957143992,0.2065703,97266.0,97265.0,0.5673724]
[1738957145593,0.2065703,97266.0,97265.0,0.3618]
[1738957146290,0.2065703,97266.0,97265.0,0.0015]
[1738957146487,0.2056252,97240.0,97234.0,0.3668029]
[1738957146687,0.0513941,97263.0,97217.0,0.49054976]
[1738957146688,0.7216,97235.0,97222.0,0.42774415]
[1738957146889,0.5664612,97223.0,97222.0,0.42722415]
[1738957147087,0.6390212,97223.0,97222.0,0.42722415]
[1738957147295,0.5664612,97223.0,97222.0,0.42722415]
[1738957149800,0.2056718,97218.0,97217.0,0.00056]
[1738957150097,0.2056764,97216.0,97214.0,0.2056794]
[1738957150482,0.2056764,97216.0,97214.0,0.21627086]
[1738957150688,0.3628,97223.0,97213.0,0.00015424]
[1738957150992,0.5664802,97214.0,97213.0,0.00015424]
[1738957152998,0.5674802,97214.0,97213.0,0.00015424]
[1738957153389,0.5684802,97214.0,97213.0,0.00115424]
[1738957154286,0.002,97214.0,97213.0,0.3608]
[1738957154491,0.2056593,97224.0,97218.0,0.205671]
[1738957154695,0.2056593,97224.0,97223.0,0.3608]
[1738957155193,0.2056593,97224.0,97223.0,0.37112001]
[1738957155595,0.2056593,97224.0,97223.0,0.01032001]
[1738957157596,0.2066593,97224.0,97223.0,0.01032001]
[1738957158896,0.21681378,97224.0,97223.0,0.01032001]
[1738957159389,0.21681378,97224.0,97223.0,0.01132001]
[1738957159801,0.001,97224.0,97223.0,0.01132001]
[1738957160008,0.001,97224.0,97223.0,0.21698121]
[1738957160495,0.2066591,97224.0,97223.0,0.01082001]
[1738957161097,0.2066591,97224.0,97223.0,0.001]
[1738957162006,0.20659156,97224.0,97223.0,0.001]
[1738957162702,0.00093246,97224.0,97223.0,0.0011]
[1738957163701,0.00093246,97224.0,97223.0,0.3619]
[1738957168293,0.00093246,97224.0,97223.0,0.5675612]
[1738957170005,0.2056193,97243.0,97240.0,0.2056252]
[1738957170899,0.01057155,97248.0,97240.0,0.2056252]
[1738957170900,0.2056231,97241.0,97240.0,0.2056252]
[1738957171811,0.2056337,97236.0,97235.0,0.1797]
[1738957172600,0.2056337,97236.0,97235.0,0.3853358]
[1738957172796,0.2056358,97235.0,97234.0,0.3608]
[1738957172995,0.2056421,97232.0,97231.0,0.00015424]
[1738957175102,0.2056502,97229.0,97223.0,0.01058209]
[1738957175310,0.2056502,97229.0,97225.0,0.2056551]
[1738957175494,0.10264,97235.0,97227.0,0.2056517]
[1738957175495,0.1,97235.0,97227.0,0.2056517]
[1738957175699,0.002,97232.0,97227.0,0.2056517]
[1738957175908,0.002,97232.0,97230.0,0.5664444]
[1738957176207,0.001,97232.0,97230.0,0.5664444]
[1738957176406,0.1,97235.0,97233.0,0.2056391]
[1738957177798,0.102,97235.0,97233.0,0.2056391]
[1738957178204,0.102,97235.0,97233.0,0.2057391]
[1738957179412,0.103,97235.0,97233.0,0.2057391]
[1738957179613,0.102,97235.0,97233.0,0.2057391]
[1738957181309,0.102,97235.0,97233.0,0.57668879]
[1738957182913,0.102,97235.0,97233.0,0.37104969]
[1738957183114,0.102,97235.0,97234.0,0.2056379]
[1738957184515,0.101,97235.0,97234.0,0.2056379]
[1738957184718,0.102,97235.0,97234.0,0.2056379]
[1738957186934,0.101,97235.0,97234.0,0.2056379]
[1738957187136,0.102,97235.0,97234.0,0.2056379]
[1738957187722,0.101,97235.0,97234.0,0.2056379]
[1738957187927,0.102,97235.0,97234.0,0.2066379]
[1738957189932,0.101,97235.0,97234.0,0.2056379]
[1738957190231,0.102,97235.0,97234.0,0.2066379]
[1738957190827,0.101,97235.0,97234.0,0.2066379]
[1738957191027,0.102,97235.0,97234.0,0.21645791]
[1738957193829,0.101,97235.0,97234.0,0.21645791]
[1738957194430,0.102,97235.0,97234.0,0.21645791]
[1738957195337,0.101,97235.0,97234.0,0.21645791]
[1738957196834,0.1,97235.0,97234.0,0.28897791]
[1738957197426,0.3056358,97235.0,97234.0,0.08334001]
[1738957197630,0.3056358,97235.0,97234.0,0.01082001]
[1738957198237,0.3056358,97235.0,97234.0,0.21645791]
[1738957198438,0.1,97235.0,97234.0,0.21645791]
[1738957199035,0.1549386,97235.0,97234.0,0.21645791]
[1738957200334,0.1559386,97235.0,97234.0,0.21545791]
[1738957200636,0.1559386,97235.0,97234.0,0.21645791]
[1738957200839,0.25214623,97235.0,97234.0,0.21645791]
[1738957201242,0.25314623,97235.0,97234.0,0.21645791]
[1738957202936,0.3066358,97235.0,97234.0,0.01082001]